{"text_format":"1","workbook":"xlsx","n_sheets":4,"sheets":["Vstupné údaje","Výsledky MUŽI","Výsledky ŽENY","Výsledky MUŽI nad 35 rokov"],"not_rendered":{"charts":0,"images":0,"macros":1,"external_links":0,"defined_names":0,"comments":0,"pivot_tables":0},"unopened":[],"bounds":{"document_bytes":16777216,"sheet_cells":100000,"rows_first":2000,"rows_last":500,"rows_between":2000,"halvings":0,"cell_chars":16384,"cell_head_chars":4096},"cells_cut":0,"cells_raw":0,"read":"whole","date_system":"1900"}

{"sheet":"Vstupné údaje","index":0,"n_rows":7,"n_cols":2,"rows_kept":7,"cut":false,"hidden":false,"merged":[[0,0,0,1]]}
["Vstupné údaje"]
[]
["Požadovaný údaj","Hodnota"]
["Názov súťaže","54. ročník O pohár starosty města Brumov-Bylnice"]
["Dátum","2022-07-03"]
["Začiatok","12:00:00"]
["Kolo v ročníku",5]

{"sheet":"Výsledky MUŽI","index":1,"n_rows":36,"n_cols":13,"rows_kept":36,"cut":false,"hidden":false,"merged":[[0,0,0,7],[1,0,1,7],[0,12,1,12],[21,12,22,12]]}
[{"$f":"'Vstupné údaje'!$B$4","v":"54. ročník O pohár starosty města Brumov-Bylnice"},null,null,null,null,null,null,null,null,null,null,null,"Návod na plnohodnotnú prácu s výsledkami"]
[{"$f":"CONCATENATE(\"Výsledky \",'Vstupné údaje'!$B$7,\". kola SMHL \",TEXT('Vstupné údaje'!$B$5,\"yyyy\"),\" v kategórii MUŽI, ktoré sa konalo \",TEXT('Vstupné údaje'!$B$5,\"dd.mm.yyyy\"),\" o \",TEXT('Vstupné údaje'!$B$6,\"hh:mm\"))","v":"Výsledky 5. kola SMHL 2022 v kategórii MUŽI, ktoré sa konalo 03.07.2022 o 12:00"}]
[]
["Por.","Družstvo","Okres","ĽP","PP","Výs. čas","Body","Prestup",null,null,null,null,"Pri zadávaní výsledkov sa vypĺňajú nasledujúce stĺpce (zvyšné sa vypočítajú automaticky):"]
[{"$f":"IF(Výsledky_MUŽI[[#This Row],[Výs. čas]]=\"čas\",\"---\",IF(Výsledky_MUŽI[[#This Row],[Výs. čas]]=99.99,\"---\",IF(Výsledky_MUŽI[[#This Row],[Výs. čas]]=\"Diskv.\",\"---\",IF(Výsledky_MUŽI[[#This Row],[Výs. čas]]=\"Neúčasť\",\"---\",_xlfn.RANK.EQ(Výsledky_MUŽI[[#This Row],[Výs. čas]],Výsledky_MUŽI[Výs. čas],1)))))","v":1},"Brumov B","ZL",13.93,14,{"$f":"IF(AND(ISBLANK(Výsledky_MUŽI[[#This Row],[PP]])),\"čas\",IF(Výsledky_MUŽI[[#This Row],[ĽP]]=\"D\",\"Diskv.\",IF(Výsledky_MUŽI[[#This Row],[PP]]=\"D\",\"Diskv.\",IF(Výsledky_MUŽI[[#This Row],[ĽP]]=\"n\",\"Neúčasť\",IF(Výsledky_MUŽI[[#This Row],[PP]]=\"n\",\"Neúčasť\",MAX(SUBSTITUTE(Výsledky_MUŽI[[#This Row],[ĽP]],\",\",\".\"),SUBSTITUTE(Výsledky_MUŽI[[#This Row],[PP]],\",\",\".\")))))))","v":14},null,null,null,null,null,null,"--- družstvo"]
[{"$f":"IF(Výsledky_MUŽI[[#This Row],[Výs. čas]]=\"čas\",\"---\",IF(Výsledky_MUŽI[[#This Row],[Výs. čas]]=99.99,\"---\",IF(Výsledky_MUŽI[[#This Row],[Výs. čas]]=\"Diskv.\",\"---\",IF(Výsledky_MUŽI[[#This Row],[Výs. čas]]=\"Neúčasť\",\"---\",_xlfn.RANK.EQ(Výsledky_MUŽI[[#This Row],[Výs. čas]],Výsledky_MUŽI[Výs. čas],1)))))","v":2},"Zbora","PU",14.54,13.86,{"$f":"IF(AND(ISBLANK(Výsledky_MUŽI[[#This Row],[PP]])),\"čas\",IF(Výsledky_MUŽI[[#This Row],[ĽP]]=\"D\",\"Diskv.\",IF(Výsledky_MUŽI[[#This Row],[PP]]=\"D\",\"Diskv.\",IF(Výsledky_MUŽI[[#This Row],[ĽP]]=\"n\",\"Neúčasť\",IF(Výsledky_MUŽI[[#This Row],[PP]]=\"n\",\"Neúčasť\",MAX(SUBSTITUTE(Výsledky_MUŽI[[#This Row],[ĽP]],\",\",\".\"),SUBSTITUTE(Výsledky_MUŽI[[#This Row],[PP]],\",\",\".\")))))))","v":14.54},null,null,null,null,null,null,"--- okres"]
[{"$f":"IF(Výsledky_MUŽI[[#This Row],[Výs. čas]]=\"čas\",\"---\",IF(Výsledky_MUŽI[[#This Row],[Výs. čas]]=99.99,\"---\",IF(Výsledky_MUŽI[[#This Row],[Výs. čas]]=\"Diskv.\",\"---\",IF(Výsledky_MUŽI[[#This Row],[Výs. čas]]=\"Neúčasť\",\"---\",_xlfn.RANK.EQ(Výsledky_MUŽI[[#This Row],[Výs. čas]],Výsledky_MUŽI[Výs. čas],1)))))","v":3},"Vrbětice","ZL",14.69,14.69,{"$f":"IF(AND(ISBLANK(Výsledky_MUŽI[[#This Row],[PP]])),\"čas\",IF(Výsledky_MUŽI[[#This Row],[ĽP]]=\"D\",\"Diskv.\",IF(Výsledky_MUŽI[[#This Row],[PP]]=\"D\",\"Diskv.\",IF(Výsledky_MUŽI[[#This Row],[ĽP]]=\"n\",\"Neúčasť\",IF(Výsledky_MUŽI[[#This Row],[PP]]=\"n\",\"Neúčasť\",MAX(SUBSTITUTE(Výsledky_MUŽI[[#This Row],[ĽP]],\",\",\".\"),SUBSTITUTE(Výsledky_MUŽI[[#This Row],[PP]],\",\",\".\")))))))","v":14.69},null,null,null,null,null,null,"--- ľavý prúd (ĽP)"]
[{"$f":"IF(Výsledky_MUŽI[[#This Row],[Výs. čas]]=\"čas\",\"---\",IF(Výsledky_MUŽI[[#This Row],[Výs. čas]]=99.99,\"---\",IF(Výsledky_MUŽI[[#This Row],[Výs. čas]]=\"Diskv.\",\"---\",IF(Výsledky_MUŽI[[#This Row],[Výs. čas]]=\"Neúčasť\",\"---\",_xlfn.RANK.EQ(Výsledky_MUŽI[[#This Row],[Výs. čas]],Výsledky_MUŽI[Výs. čas],1)))))","v":4},"Zbora B","PU",14.67,14.82,{"$f":"IF(AND(ISBLANK(Výsledky_MUŽI[[#This Row],[PP]])),\"čas\",IF(Výsledky_MUŽI[[#This Row],[ĽP]]=\"D\",\"Diskv.\",IF(Výsledky_MUŽI[[#This Row],[PP]]=\"D\",\"Diskv.\",IF(Výsledky_MUŽI[[#This Row],[ĽP]]=\"n\",\"Neúčasť\",IF(Výsledky_MUŽI[[#This Row],[PP]]=\"n\",\"Neúčasť\",MAX(SUBSTITUTE(Výsledky_MUŽI[[#This Row],[ĽP]],\",\",\".\"),SUBSTITUTE(Výsledky_MUŽI[[#This Row],[PP]],\",\",\".\")))))))","v":14.82},null,null,null,null,null,null,"--- pravý prúd (PP)"]
[{"$f":"IF(Výsledky_MUŽI[[#This Row],[Výs. čas]]=\"čas\",\"---\",IF(Výsledky_MUŽI[[#This Row],[Výs. čas]]=99.99,\"---\",IF(Výsledky_MUŽI[[#This Row],[Výs. čas]]=\"Diskv.\",\"---\",IF(Výsledky_MUŽI[[#This Row],[Výs. čas]]=\"Neúčasť\",\"---\",_xlfn.RANK.EQ(Výsledky_MUŽI[[#This Row],[Výs. čas]],Výsledky_MUŽI[Výs. čas],1)))))","v":5},"Ďurďové","PB",14.92,14.5,{"$f":"IF(AND(ISBLANK(Výsledky_MUŽI[[#This Row],[PP]])),\"čas\",IF(Výsledky_MUŽI[[#This Row],[ĽP]]=\"D\",\"Diskv.\",IF(Výsledky_MUŽI[[#This Row],[PP]]=\"D\",\"Diskv.\",IF(Výsledky_MUŽI[[#This Row],[ĽP]]=\"n\",\"Neúčasť\",IF(Výsledky_MUŽI[[#This Row],[PP]]=\"n\",\"Neúčasť\",MAX(SUBSTITUTE(Výsledky_MUŽI[[#This Row],[ĽP]],\",\",\".\"),SUBSTITUTE(Výsledky_MUŽI[[#This Row],[PP]],\",\",\".\")))))))","v":14.92},null,null,null,null,null,null,"--- prestup"]
[{"$f":"IF(Výsledky_MUŽI[[#This Row],[Výs. čas]]=\"čas\",\"---\",IF(Výsledky_MUŽI[[#This Row],[Výs. čas]]=99.99,\"---\",IF(Výsledky_MUŽI[[#This Row],[Výs. čas]]=\"Diskv.\",\"---\",IF(Výsledky_MUŽI[[#This Row],[Výs. čas]]=\"Neúčasť\",\"---\",_xlfn.RANK.EQ(Výsledky_MUŽI[[#This Row],[Výs. čas]],Výsledky_MUŽI[Výs. čas],1)))))","v":6},"Visolaje A","PU",14.99,15.2,{"$f":"IF(AND(ISBLANK(Výsledky_MUŽI[[#This Row],[PP]])),\"čas\",IF(Výsledky_MUŽI[[#This Row],[ĽP]]=\"D\",\"Diskv.\",IF(Výsledky_MUŽI[[#This Row],[PP]]=\"D\",\"Diskv.\",IF(Výsledky_MUŽI[[#This Row],[ĽP]]=\"n\",\"Neúčasť\",IF(Výsledky_MUŽI[[#This Row],[PP]]=\"n\",\"Neúčasť\",MAX(SUBSTITUTE(Výsledky_MUŽI[[#This Row],[ĽP]],\",\",\".\"),SUBSTITUTE(Výsledky_MUŽI[[#This Row],[PP]],\",\",\".\")))))))","v":15.2}]
[{"$f":"IF(Výsledky_MUŽI[[#This Row],[Výs. čas]]=\"čas\",\"---\",IF(Výsledky_MUŽI[[#This Row],[Výs. čas]]=99.99,\"---\",IF(Výsledky_MUŽI[[#This Row],[Výs. čas]]=\"Diskv.\",\"---\",IF(Výsledky_MUŽI[[#This Row],[Výs. čas]]=\"Neúčasť\",\"---\",_xlfn.RANK.EQ(Výsledky_MUŽI[[#This Row],[Výs. čas]],Výsledky_MUŽI[Výs. čas],1)))))","v":7},"Hoštiná","PU",14.64,15.22,{"$f":"IF(AND(ISBLANK(Výsledky_MUŽI[[#This Row],[PP]])),\"čas\",IF(Výsledky_MUŽI[[#This Row],[ĽP]]=\"D\",\"Diskv.\",IF(Výsledky_MUŽI[[#This Row],[PP]]=\"D\",\"Diskv.\",IF(Výsledky_MUŽI[[#This Row],[ĽP]]=\"n\",\"Neúčasť\",IF(Výsledky_MUŽI[[#This Row],[PP]]=\"n\",\"Neúčasť\",MAX(SUBSTITUTE(Výsledky_MUŽI[[#This Row],[ĽP]],\",\",\".\"),SUBSTITUTE(Výsledky_MUŽI[[#This Row],[PP]],\",\",\".\")))))))","v":15.22},null,"X",null,null,null,null,"Dovolený formát zadávaných údajov:"]
[{"$f":"IF(Výsledky_MUŽI[[#This Row],[Výs. čas]]=\"čas\",\"---\",IF(Výsledky_MUŽI[[#This Row],[Výs. čas]]=99.99,\"---\",IF(Výsledky_MUŽI[[#This Row],[Výs. čas]]=\"Diskv.\",\"---\",IF(Výsledky_MUŽI[[#This Row],[Výs. čas]]=\"Neúčasť\",\"---\",_xlfn.RANK.EQ(Výsledky_MUŽI[[#This Row],[Výs. čas]],Výsledky_MUŽI[Výs. čas],1)))))","v":8},"Lehota pod Vtáčnikom","PD",15.2,15.27,{"$f":"IF(AND(ISBLANK(Výsledky_MUŽI[[#This Row],[PP]])),\"čas\",IF(Výsledky_MUŽI[[#This Row],[ĽP]]=\"D\",\"Diskv.\",IF(Výsledky_MUŽI[[#This Row],[PP]]=\"D\",\"Diskv.\",IF(Výsledky_MUŽI[[#This Row],[ĽP]]=\"n\",\"Neúčasť\",IF(Výsledky_MUŽI[[#This Row],[PP]]=\"n\",\"Neúčasť\",MAX(SUBSTITUTE(Výsledky_MUŽI[[#This Row],[ĽP]],\",\",\".\"),SUBSTITUTE(Výsledky_MUŽI[[#This Row],[PP]],\",\",\".\")))))))","v":15.27},null,"X",null,null,null,null,"Družstvo, okres"]
[{"$f":"IF(Výsledky_MUŽI[[#This Row],[Výs. čas]]=\"čas\",\"---\",IF(Výsledky_MUŽI[[#This Row],[Výs. čas]]=99.99,\"---\",IF(Výsledky_MUŽI[[#This Row],[Výs. čas]]=\"Diskv.\",\"---\",IF(Výsledky_MUŽI[[#This Row],[Výs. čas]]=\"Neúčasť\",\"---\",_xlfn.RANK.EQ(Výsledky_MUŽI[[#This Row],[Výs. čas]],Výsledky_MUŽI[Výs. čas],1)))))","v":9},"Tečovice","ZL",15.1,15.3,{"$f":"IF(AND(ISBLANK(Výsledky_MUŽI[[#This Row],[PP]])),\"čas\",IF(Výsledky_MUŽI[[#This Row],[ĽP]]=\"D\",\"Diskv.\",IF(Výsledky_MUŽI[[#This Row],[PP]]=\"D\",\"Diskv.\",IF(Výsledky_MUŽI[[#This Row],[ĽP]]=\"n\",\"Neúčasť\",IF(Výsledky_MUŽI[[#This Row],[PP]]=\"n\",\"Neúčasť\",MAX(SUBSTITUTE(Výsledky_MUŽI[[#This Row],[ĽP]],\",\",\".\"),SUBSTITUTE(Výsledky_MUŽI[[#This Row],[PP]],\",\",\".\")))))))","v":15.3},null,null,null,null,null,null,"--- ľubovoľný text"]
[{"$f":"IF(Výsledky_MUŽI[[#This Row],[Výs. čas]]=\"čas\",\"---\",IF(Výsledky_MUŽI[[#This Row],[Výs. čas]]=99.99,\"---\",IF(Výsledky_MUŽI[[#This Row],[Výs. čas]]=\"Diskv.\",\"---\",IF(Výsledky_MUŽI[[#This Row],[Výs. čas]]=\"Neúčasť\",\"---\",_xlfn.RANK.EQ(Výsledky_MUŽI[[#This Row],[Výs. čas]],Výsledky_MUŽI[Výs. čas],1)))))","v":10},"Mladcová","ZL",14.98,15.34,{"$f":"IF(AND(ISBLANK(Výsledky_MUŽI[[#This Row],[PP]])),\"čas\",IF(Výsledky_MUŽI[[#This Row],[ĽP]]=\"D\",\"Diskv.\",IF(Výsledky_MUŽI[[#This Row],[PP]]=\"D\",\"Diskv.\",IF(Výsledky_MUŽI[[#This Row],[ĽP]]=\"n\",\"Neúčasť\",IF(Výsledky_MUŽI[[#This Row],[PP]]=\"n\",\"Neúčasť\",MAX(SUBSTITUTE(Výsledky_MUŽI[[#This Row],[ĽP]],\",\",\".\"),SUBSTITUTE(Výsledky_MUŽI[[#This Row],[PP]],\",\",\".\")))))))","v":15.34},null,null,null,null,null,null,"Ľavý/pravý prúd"]
[{"$f":"IF(Výsledky_MUŽI[[#This Row],[Výs. čas]]=\"čas\",\"---\",IF(Výsledky_MUŽI[[#This Row],[Výs. čas]]=99.99,\"---\",IF(Výsledky_MUŽI[[#This Row],[Výs. čas]]=\"Diskv.\",\"---\",IF(Výsledky_MUŽI[[#This Row],[Výs. čas]]=\"Neúčasť\",\"---\",_xlfn.RANK.EQ(Výsledky_MUŽI[[#This Row],[Výs. čas]],Výsledky_MUŽI[Výs. čas],1)))))","v":11},"Francova Lhota","VS",15.38,14.48,{"$f":"IF(AND(ISBLANK(Výsledky_MUŽI[[#This Row],[PP]])),\"čas\",IF(Výsledky_MUŽI[[#This Row],[ĽP]]=\"D\",\"Diskv.\",IF(Výsledky_MUŽI[[#This Row],[PP]]=\"D\",\"Diskv.\",IF(Výsledky_MUŽI[[#This Row],[ĽP]]=\"n\",\"Neúčasť\",IF(Výsledky_MUŽI[[#This Row],[PP]]=\"n\",\"Neúčasť\",MAX(SUBSTITUTE(Výsledky_MUŽI[[#This Row],[ĽP]],\",\",\".\"),SUBSTITUTE(Výsledky_MUŽI[[#This Row],[PP]],\",\",\".\")))))))","v":15.38},null,null,null,null,null,null,"14.00 --- dokončený pokus"]
[{"$f":"IF(Výsledky_MUŽI[[#This Row],[Výs. čas]]=\"čas\",\"---\",IF(Výsledky_MUŽI[[#This Row],[Výs. čas]]=99.99,\"---\",IF(Výsledky_MUŽI[[#This Row],[Výs. čas]]=\"Diskv.\",\"---\",IF(Výsledky_MUŽI[[#This Row],[Výs. čas]]=\"Neúčasť\",\"---\",_xlfn.RANK.EQ(Výsledky_MUŽI[[#This Row],[Výs. čas]],Výsledky_MUŽI[Výs. čas],1)))))","v":12},"Lidečko","VS",14.76,15.61,{"$f":"IF(AND(ISBLANK(Výsledky_MUŽI[[#This Row],[PP]])),\"čas\",IF(Výsledky_MUŽI[[#This Row],[ĽP]]=\"D\",\"Diskv.\",IF(Výsledky_MUŽI[[#This Row],[PP]]=\"D\",\"Diskv.\",IF(Výsledky_MUŽI[[#This Row],[ĽP]]=\"n\",\"Neúčasť\",IF(Výsledky_MUŽI[[#This Row],[PP]]=\"n\",\"Neúčasť\",MAX(SUBSTITUTE(Výsledky_MUŽI[[#This Row],[ĽP]],\",\",\".\"),SUBSTITUTE(Výsledky_MUŽI[[#This Row],[PP]],\",\",\".\")))))))","v":15.61},null,null,null,null,null,null,"99.99 --- nedokončený pokus"]
[{"$f":"IF(Výsledky_MUŽI[[#This Row],[Výs. čas]]=\"čas\",\"---\",IF(Výsledky_MUŽI[[#This Row],[Výs. čas]]=99.99,\"---\",IF(Výsledky_MUŽI[[#This Row],[Výs. čas]]=\"Diskv.\",\"---\",IF(Výsledky_MUŽI[[#This Row],[Výs. čas]]=\"Neúčasť\",\"---\",_xlfn.RANK.EQ(Výsledky_MUŽI[[#This Row],[Výs. čas]],Výsledky_MUŽI[Výs. čas],1)))))","v":13},"Krásno","PE",15.33,15.82,{"$f":"IF(AND(ISBLANK(Výsledky_MUŽI[[#This Row],[PP]])),\"čas\",IF(Výsledky_MUŽI[[#This Row],[ĽP]]=\"D\",\"Diskv.\",IF(Výsledky_MUŽI[[#This Row],[PP]]=\"D\",\"Diskv.\",IF(Výsledky_MUŽI[[#This Row],[ĽP]]=\"n\",\"Neúčasť\",IF(Výsledky_MUŽI[[#This Row],[PP]]=\"n\",\"Neúčasť\",MAX(SUBSTITUTE(Výsledky_MUŽI[[#This Row],[ĽP]],\",\",\".\"),SUBSTITUTE(Výsledky_MUŽI[[#This Row],[PP]],\",\",\".\")))))))","v":15.82},null,null,null,null,null,null,"D        --- diskvalifikácia družstva"]
[{"$f":"IF(Výsledky_MUŽI[[#This Row],[Výs. čas]]=\"čas\",\"---\",IF(Výsledky_MUŽI[[#This Row],[Výs. čas]]=99.99,\"---\",IF(Výsledky_MUŽI[[#This Row],[Výs. čas]]=\"Diskv.\",\"---\",IF(Výsledky_MUŽI[[#This Row],[Výs. čas]]=\"Neúčasť\",\"---\",_xlfn.RANK.EQ(Výsledky_MUŽI[[#This Row],[Výs. čas]],Výsledky_MUŽI[Výs. čas],1)))))","v":14},"Poruba","PD",15.32,16.64,{"$f":"IF(AND(ISBLANK(Výsledky_MUŽI[[#This Row],[PP]])),\"čas\",IF(Výsledky_MUŽI[[#This Row],[ĽP]]=\"D\",\"Diskv.\",IF(Výsledky_MUŽI[[#This Row],[PP]]=\"D\",\"Diskv.\",IF(Výsledky_MUŽI[[#This Row],[ĽP]]=\"n\",\"Neúčasť\",IF(Výsledky_MUŽI[[#This Row],[PP]]=\"n\",\"Neúčasť\",MAX(SUBSTITUTE(Výsledky_MUŽI[[#This Row],[ĽP]],\",\",\".\"),SUBSTITUTE(Výsledky_MUŽI[[#This Row],[PP]],\",\",\".\")))))))","v":16.64},null,null,null,null,null,null,"N        --- neúčasť družstva"]
[{"$f":"IF(Výsledky_MUŽI[[#This Row],[Výs. čas]]=\"čas\",\"---\",IF(Výsledky_MUŽI[[#This Row],[Výs. čas]]=99.99,\"---\",IF(Výsledky_MUŽI[[#This Row],[Výs. čas]]=\"Diskv.\",\"---\",IF(Výsledky_MUŽI[[#This Row],[Výs. čas]]=\"Neúčasť\",\"---\",_xlfn.RANK.EQ(Výsledky_MUŽI[[#This Row],[Výs. čas]],Výsledky_MUŽI[Výs. čas],1)))))","v":15},"Křekov",null,16.760000000000002,15.79,{"$f":"IF(AND(ISBLANK(Výsledky_MUŽI[[#This Row],[PP]])),\"čas\",IF(Výsledky_MUŽI[[#This Row],[ĽP]]=\"D\",\"Diskv.\",IF(Výsledky_MUŽI[[#This Row],[PP]]=\"D\",\"Diskv.\",IF(Výsledky_MUŽI[[#This Row],[ĽP]]=\"n\",\"Neúčasť\",IF(Výsledky_MUŽI[[#This Row],[PP]]=\"n\",\"Neúčasť\",MAX(SUBSTITUTE(Výsledky_MUŽI[[#This Row],[ĽP]],\",\",\".\"),SUBSTITUTE(Výsledky_MUŽI[[#This Row],[PP]],\",\",\".\")))))))","v":16.760000000000002},null,null,null,null,null,null,"Prestup"]
[{"$f":"IF(Výsledky_MUŽI[[#This Row],[Výs. čas]]=\"čas\",\"---\",IF(Výsledky_MUŽI[[#This Row],[Výs. čas]]=99.99,\"---\",IF(Výsledky_MUŽI[[#This Row],[Výs. čas]]=\"Diskv.\",\"---\",IF(Výsledky_MUŽI[[#This Row],[Výs. čas]]=\"Neúčasť\",\"---\",_xlfn.RANK.EQ(Výsledky_MUŽI[[#This Row],[Výs. čas]],Výsledky_MUŽI[Výs. čas],1)))))","v":16},"Bylnice","ZL",15.09,16.8,{"$f":"IF(AND(ISBLANK(Výsledky_MUŽI[[#This Row],[PP]])),\"čas\",IF(Výsledky_MUŽI[[#This Row],[ĽP]]=\"D\",\"Diskv.\",IF(Výsledky_MUŽI[[#This Row],[PP]]=\"D\",\"Diskv.\",IF(Výsledky_MUŽI[[#This Row],[ĽP]]=\"n\",\"Neúčasť\",IF(Výsledky_MUŽI[[#This Row],[PP]]=\"n\",\"Neúčasť\",MAX(SUBSTITUTE(Výsledky_MUŽI[[#This Row],[ĽP]],\",\",\".\"),SUBSTITUTE(Výsledky_MUŽI[[#This Row],[PP]],\",\",\".\")))))))","v":16.8},null,null,null,null,null,null,"X        --- ak malo družstvo prestup"]
[{"$f":"IF(Výsledky_MUŽI[[#This Row],[Výs. čas]]=\"čas\",\"---\",IF(Výsledky_MUŽI[[#This Row],[Výs. čas]]=99.99,\"---\",IF(Výsledky_MUŽI[[#This Row],[Výs. čas]]=\"Diskv.\",\"---\",IF(Výsledky_MUŽI[[#This Row],[Výs. čas]]=\"Neúčasť\",\"---\",_xlfn.RANK.EQ(Výsledky_MUŽI[[#This Row],[Výs. čas]],Výsledky_MUŽI[Výs. čas],1)))))","v":17},"Podlužany","BN",17.510000000000002,16.68,{"$f":"IF(AND(ISBLANK(Výsledky_MUŽI[[#This Row],[PP]])),\"čas\",IF(Výsledky_MUŽI[[#This Row],[ĽP]]=\"D\",\"Diskv.\",IF(Výsledky_MUŽI[[#This Row],[PP]]=\"D\",\"Diskv.\",IF(Výsledky_MUŽI[[#This Row],[ĽP]]=\"n\",\"Neúčasť\",IF(Výsledky_MUŽI[[#This Row],[PP]]=\"n\",\"Neúčasť\",MAX(SUBSTITUTE(Výsledky_MUŽI[[#This Row],[ĽP]],\",\",\".\"),SUBSTITUTE(Výsledky_MUŽI[[#This Row],[PP]],\",\",\".\")))))))","v":17.510000000000002}]
[{"$f":"IF(Výsledky_MUŽI[[#This Row],[Výs. čas]]=\"čas\",\"---\",IF(Výsledky_MUŽI[[#This Row],[Výs. čas]]=99.99,\"---\",IF(Výsledky_MUŽI[[#This Row],[Výs. čas]]=\"Diskv.\",\"---\",IF(Výsledky_MUŽI[[#This Row],[Výs. čas]]=\"Neúčasť\",\"---\",_xlfn.RANK.EQ(Výsledky_MUŽI[[#This Row],[Výs. čas]],Výsledky_MUŽI[Výs. čas],1)))))","v":18},"Svatobořice",null,17.22,17.63,{"$f":"IF(AND(ISBLANK(Výsledky_MUŽI[[#This Row],[PP]])),\"čas\",IF(Výsledky_MUŽI[[#This Row],[ĽP]]=\"D\",\"Diskv.\",IF(Výsledky_MUŽI[[#This Row],[PP]]=\"D\",\"Diskv.\",IF(Výsledky_MUŽI[[#This Row],[ĽP]]=\"n\",\"Neúčasť\",IF(Výsledky_MUŽI[[#This Row],[PP]]=\"n\",\"Neúčasť\",MAX(SUBSTITUTE(Výsledky_MUŽI[[#This Row],[ĽP]],\",\",\".\"),SUBSTITUTE(Výsledky_MUŽI[[#This Row],[PP]],\",\",\".\")))))))","v":17.63},null,null,null,null,null,null,"TIP: Ak potrebujete do tabuľky pridať nový riadok, presuňte sa do stĺpca \"H\" posledného riadku a stačte klávesu TAB."]
[{"$f":"IF(Výsledky_MUŽI[[#This Row],[Výs. čas]]=\"čas\",\"---\",IF(Výsledky_MUŽI[[#This Row],[Výs. čas]]=99.99,\"---\",IF(Výsledky_MUŽI[[#This Row],[Výs. čas]]=\"Diskv.\",\"---\",IF(Výsledky_MUŽI[[#This Row],[Výs. čas]]=\"Neúčasť\",\"---\",_xlfn.RANK.EQ(Výsledky_MUŽI[[#This Row],[Výs. čas]],Výsledky_MUŽI[Výs. čas],1)))))","v":19},"Svinná","TN",18.02,15.09,{"$f":"IF(AND(ISBLANK(Výsledky_MUŽI[[#This Row],[PP]])),\"čas\",IF(Výsledky_MUŽI[[#This Row],[ĽP]]=\"D\",\"Diskv.\",IF(Výsledky_MUŽI[[#This Row],[PP]]=\"D\",\"Diskv.\",IF(Výsledky_MUŽI[[#This Row],[ĽP]]=\"n\",\"Neúčasť\",IF(Výsledky_MUŽI[[#This Row],[PP]]=\"n\",\"Neúčasť\",MAX(SUBSTITUTE(Výsledky_MUŽI[[#This Row],[ĽP]],\",\",\".\"),SUBSTITUTE(Výsledky_MUŽI[[#This Row],[PP]],\",\",\".\")))))))","v":18.02}]
[{"$f":"IF(Výsledky_MUŽI[[#This Row],[Výs. čas]]=\"čas\",\"---\",IF(Výsledky_MUŽI[[#This Row],[Výs. čas]]=99.99,\"---\",IF(Výsledky_MUŽI[[#This Row],[Výs. čas]]=\"Diskv.\",\"---\",IF(Výsledky_MUŽI[[#This Row],[Výs. čas]]=\"Neúčasť\",\"---\",_xlfn.RANK.EQ(Výsledky_MUŽI[[#This Row],[Výs. čas]],Výsledky_MUŽI[Výs. čas],1)))))","v":20},"Ruskovce","BN",15.49,18.52,{"$f":"IF(AND(ISBLANK(Výsledky_MUŽI[[#This Row],[PP]])),\"čas\",IF(Výsledky_MUŽI[[#This Row],[ĽP]]=\"D\",\"Diskv.\",IF(Výsledky_MUŽI[[#This Row],[PP]]=\"D\",\"Diskv.\",IF(Výsledky_MUŽI[[#This Row],[ĽP]]=\"n\",\"Neúčasť\",IF(Výsledky_MUŽI[[#This Row],[PP]]=\"n\",\"Neúčasť\",MAX(SUBSTITUTE(Výsledky_MUŽI[[#This Row],[ĽP]],\",\",\".\"),SUBSTITUTE(Výsledky_MUŽI[[#This Row],[PP]],\",\",\".\")))))))","v":18.52}]
[{"$f":"IF(Výsledky_MUŽI[[#This Row],[Výs. čas]]=\"čas\",\"---\",IF(Výsledky_MUŽI[[#This Row],[Výs. čas]]=99.99,\"---\",IF(Výsledky_MUŽI[[#This Row],[Výs. čas]]=\"Diskv.\",\"---\",IF(Výsledky_MUŽI[[#This Row],[Výs. čas]]=\"Neúčasť\",\"---\",_xlfn.RANK.EQ(Výsledky_MUŽI[[#This Row],[Výs. čas]],Výsledky_MUŽI[Výs. čas],1)))))","v":21},"Lhota","ZL",19.649999999999999,19.82,{"$f":"IF(AND(ISBLANK(Výsledky_MUŽI[[#This Row],[PP]])),\"čas\",IF(Výsledky_MUŽI[[#This Row],[ĽP]]=\"D\",\"Diskv.\",IF(Výsledky_MUŽI[[#This Row],[PP]]=\"D\",\"Diskv.\",IF(Výsledky_MUŽI[[#This Row],[ĽP]]=\"n\",\"Neúčasť\",IF(Výsledky_MUŽI[[#This Row],[PP]]=\"n\",\"Neúčasť\",MAX(SUBSTITUTE(Výsledky_MUŽI[[#This Row],[ĽP]],\",\",\".\"),SUBSTITUTE(Výsledky_MUŽI[[#This Row],[PP]],\",\",\".\")))))))","v":19.82}]
[{"$f":"IF(Výsledky_MUŽI[[#This Row],[Výs. čas]]=\"čas\",\"---\",IF(Výsledky_MUŽI[[#This Row],[Výs. čas]]=99.99,\"---\",IF(Výsledky_MUŽI[[#This Row],[Výs. čas]]=\"Diskv.\",\"---\",IF(Výsledky_MUŽI[[#This Row],[Výs. čas]]=\"Neúčasť\",\"---\",_xlfn.RANK.EQ(Výsledky_MUŽI[[#This Row],[Výs. čas]],Výsledky_MUŽI[Výs. čas],1)))))","v":22},"Lednické Rovne","PU",20.27,19.25,{"$f":"IF(AND(ISBLANK(Výsledky_MUŽI[[#This Row],[PP]])),\"čas\",IF(Výsledky_MUŽI[[#This Row],[ĽP]]=\"D\",\"Diskv.\",IF(Výsledky_MUŽI[[#This Row],[PP]]=\"D\",\"Diskv.\",IF(Výsledky_MUŽI[[#This Row],[ĽP]]=\"n\",\"Neúčasť\",IF(Výsledky_MUŽI[[#This Row],[PP]]=\"n\",\"Neúčasť\",MAX(SUBSTITUTE(Výsledky_MUŽI[[#This Row],[ĽP]],\",\",\".\"),SUBSTITUTE(Výsledky_MUŽI[[#This Row],[PP]],\",\",\".\")))))))","v":20.27}]
[{"$f":"IF(Výsledky_MUŽI[[#This Row],[Výs. čas]]=\"čas\",\"---\",IF(Výsledky_MUŽI[[#This Row],[Výs. čas]]=99.99,\"---\",IF(Výsledky_MUŽI[[#This Row],[Výs. čas]]=\"Diskv.\",\"---\",IF(Výsledky_MUŽI[[#This Row],[Výs. čas]]=\"Neúčasť\",\"---\",_xlfn.RANK.EQ(Výsledky_MUŽI[[#This Row],[Výs. čas]],Výsledky_MUŽI[Výs. čas],1)))))","v":"---"},"Oldřichovice","ZL",99.99,99.99,{"$f":"IF(AND(ISBLANK(Výsledky_MUŽI[[#This Row],[PP]])),\"čas\",IF(Výsledky_MUŽI[[#This Row],[ĽP]]=\"D\",\"Diskv.\",IF(Výsledky_MUŽI[[#This Row],[PP]]=\"D\",\"Diskv.\",IF(Výsledky_MUŽI[[#This Row],[ĽP]]=\"n\",\"Neúčasť\",IF(Výsledky_MUŽI[[#This Row],[PP]]=\"n\",\"Neúčasť\",MAX(SUBSTITUTE(Výsledky_MUŽI[[#This Row],[ĽP]],\",\",\".\"),SUBSTITUTE(Výsledky_MUŽI[[#This Row],[PP]],\",\",\".\")))))))","v":99.99}]
[{"$f":"IF(Výsledky_MUŽI[[#This Row],[Výs. čas]]=\"čas\",\"---\",IF(Výsledky_MUŽI[[#This Row],[Výs. čas]]=99.99,\"---\",IF(Výsledky_MUŽI[[#This Row],[Výs. čas]]=\"Diskv.\",\"---\",IF(Výsledky_MUŽI[[#This Row],[Výs. čas]]=\"Neúčasť\",\"---\",_xlfn.RANK.EQ(Výsledky_MUŽI[[#This Row],[Výs. čas]],Výsledky_MUŽI[Výs. čas],1)))))","v":"---"},"Nevšová A","ZL",99.99,99.99,{"$f":"IF(AND(ISBLANK(Výsledky_MUŽI[[#This Row],[PP]])),\"čas\",IF(Výsledky_MUŽI[[#This Row],[ĽP]]=\"D\",\"Diskv.\",IF(Výsledky_MUŽI[[#This Row],[PP]]=\"D\",\"Diskv.\",IF(Výsledky_MUŽI[[#This Row],[ĽP]]=\"n\",\"Neúčasť\",IF(Výsledky_MUŽI[[#This Row],[PP]]=\"n\",\"Neúčasť\",MAX(SUBSTITUTE(Výsledky_MUŽI[[#This Row],[ĽP]],\",\",\".\"),SUBSTITUTE(Výsledky_MUŽI[[#This Row],[PP]],\",\",\".\")))))))","v":99.99}]
[{"$f":"IF(Výsledky_MUŽI[[#This Row],[Výs. čas]]=\"čas\",\"---\",IF(Výsledky_MUŽI[[#This Row],[Výs. čas]]=99.99,\"---\",IF(Výsledky_MUŽI[[#This Row],[Výs. čas]]=\"Diskv.\",\"---\",IF(Výsledky_MUŽI[[#This Row],[Výs. čas]]=\"Neúčasť\",\"---\",_xlfn.RANK.EQ(Výsledky_MUŽI[[#This Row],[Výs. čas]],Výsledky_MUŽI[Výs. čas],1)))))","v":"---"},null,null,null,null,{"$f":"IF(AND(ISBLANK(Výsledky_MUŽI[[#This Row],[PP]])),\"čas\",IF(Výsledky_MUŽI[[#This Row],[ĽP]]=\"D\",\"Diskv.\",IF(Výsledky_MUŽI[[#This Row],[PP]]=\"D\",\"Diskv.\",IF(Výsledky_MUŽI[[#This Row],[ĽP]]=\"n\",\"Neúčasť\",IF(Výsledky_MUŽI[[#This Row],[PP]]=\"n\",\"Neúčasť\",MAX(SUBSTITUTE(Výsledky_MUŽI[[#This Row],[ĽP]],\",\",\".\"),SUBSTITUTE(Výsledky_MUŽI[[#This Row],[PP]],\",\",\".\")))))))","v":"čas"}]
[{"$f":"IF(Výsledky_MUŽI[[#This Row],[Výs. čas]]=\"čas\",\"---\",IF(Výsledky_MUŽI[[#This Row],[Výs. čas]]=99.99,\"---\",IF(Výsledky_MUŽI[[#This Row],[Výs. čas]]=\"Diskv.\",\"---\",IF(Výsledky_MUŽI[[#This Row],[Výs. čas]]=\"Neúčasť\",\"---\",_xlfn.RANK.EQ(Výsledky_MUŽI[[#This Row],[Výs. čas]],Výsledky_MUŽI[Výs. čas],1)))))","v":"---"},null,null,null,null,{"$f":"IF(AND(ISBLANK(Výsledky_MUŽI[[#This Row],[PP]])),\"čas\",IF(Výsledky_MUŽI[[#This Row],[ĽP]]=\"D\",\"Diskv.\",IF(Výsledky_MUŽI[[#This Row],[PP]]=\"D\",\"Diskv.\",IF(Výsledky_MUŽI[[#This Row],[ĽP]]=\"n\",\"Neúčasť\",IF(Výsledky_MUŽI[[#This Row],[PP]]=\"n\",\"Neúčasť\",MAX(SUBSTITUTE(Výsledky_MUŽI[[#This Row],[ĽP]],\",\",\".\"),SUBSTITUTE(Výsledky_MUŽI[[#This Row],[PP]],\",\",\".\")))))))","v":"čas"}]
[{"$f":"IF(Výsledky_MUŽI[[#This Row],[Výs. čas]]=\"čas\",\"---\",IF(Výsledky_MUŽI[[#This Row],[Výs. čas]]=99.99,\"---\",IF(Výsledky_MUŽI[[#This Row],[Výs. čas]]=\"Diskv.\",\"---\",IF(Výsledky_MUŽI[[#This Row],[Výs. čas]]=\"Neúčasť\",\"---\",_xlfn.RANK.EQ(Výsledky_MUŽI[[#This Row],[Výs. čas]],Výsledky_MUŽI[Výs. čas],1)))))","v":"---"},null,null,null,null,{"$f":"IF(AND(ISBLANK(Výsledky_MUŽI[[#This Row],[PP]])),\"čas\",IF(Výsledky_MUŽI[[#This Row],[ĽP]]=\"D\",\"Diskv.\",IF(Výsledky_MUŽI[[#This Row],[PP]]=\"D\",\"Diskv.\",IF(Výsledky_MUŽI[[#This Row],[ĽP]]=\"n\",\"Neúčasť\",IF(Výsledky_MUŽI[[#This Row],[PP]]=\"n\",\"Neúčasť\",MAX(SUBSTITUTE(Výsledky_MUŽI[[#This Row],[ĽP]],\",\",\".\"),SUBSTITUTE(Výsledky_MUŽI[[#This Row],[PP]],\",\",\".\")))))))","v":"čas"}]
[{"$f":"IF(Výsledky_MUŽI[[#This Row],[Výs. čas]]=\"čas\",\"---\",IF(Výsledky_MUŽI[[#This Row],[Výs. čas]]=99.99,\"---\",IF(Výsledky_MUŽI[[#This Row],[Výs. čas]]=\"Diskv.\",\"---\",IF(Výsledky_MUŽI[[#This Row],[Výs. čas]]=\"Neúčasť\",\"---\",_xlfn.RANK.EQ(Výsledky_MUŽI[[#This Row],[Výs. čas]],Výsledky_MUŽI[Výs. čas],1)))))","v":"---"},null,null,null,null,{"$f":"IF(AND(ISBLANK(Výsledky_MUŽI[[#This Row],[PP]])),\"čas\",IF(Výsledky_MUŽI[[#This Row],[ĽP]]=\"D\",\"Diskv.\",IF(Výsledky_MUŽI[[#This Row],[PP]]=\"D\",\"Diskv.\",IF(Výsledky_MUŽI[[#This Row],[ĽP]]=\"n\",\"Neúčasť\",IF(Výsledky_MUŽI[[#This Row],[PP]]=\"n\",\"Neúčasť\",MAX(SUBSTITUTE(Výsledky_MUŽI[[#This Row],[ĽP]],\",\",\".\"),SUBSTITUTE(Výsledky_MUŽI[[#This Row],[PP]],\",\",\".\")))))))","v":"čas"}]
[{"$f":"IF(Výsledky_MUŽI[[#This Row],[Výs. čas]]=\"čas\",\"---\",IF(Výsledky_MUŽI[[#This Row],[Výs. čas]]=99.99,\"---\",IF(Výsledky_MUŽI[[#This Row],[Výs. čas]]=\"Diskv.\",\"---\",IF(Výsledky_MUŽI[[#This Row],[Výs. čas]]=\"Neúčasť\",\"---\",_xlfn.RANK.EQ(Výsledky_MUŽI[[#This Row],[Výs. čas]],Výsledky_MUŽI[Výs. čas],1)))))","v":"---"},null,null,null,null,{"$f":"IF(AND(ISBLANK(Výsledky_MUŽI[[#This Row],[PP]])),\"čas\",IF(Výsledky_MUŽI[[#This Row],[ĽP]]=\"D\",\"Diskv.\",IF(Výsledky_MUŽI[[#This Row],[PP]]=\"D\",\"Diskv.\",IF(Výsledky_MUŽI[[#This Row],[ĽP]]=\"n\",\"Neúčasť\",IF(Výsledky_MUŽI[[#This Row],[PP]]=\"n\",\"Neúčasť\",MAX(SUBSTITUTE(Výsledky_MUŽI[[#This Row],[ĽP]],\",\",\".\"),SUBSTITUTE(Výsledky_MUŽI[[#This Row],[PP]],\",\",\".\")))))))","v":"čas"}]
[{"$f":"IF(Výsledky_MUŽI[[#This Row],[Výs. čas]]=\"čas\",\"---\",IF(Výsledky_MUŽI[[#This Row],[Výs. čas]]=99.99,\"---\",IF(Výsledky_MUŽI[[#This Row],[Výs. čas]]=\"Diskv.\",\"---\",IF(Výsledky_MUŽI[[#This Row],[Výs. čas]]=\"Neúčasť\",\"---\",_xlfn.RANK.EQ(Výsledky_MUŽI[[#This Row],[Výs. čas]],Výsledky_MUŽI[Výs. čas],1)))))","v":"---"},null,null,null,null,{"$f":"IF(AND(ISBLANK(Výsledky_MUŽI[[#This Row],[PP]])),\"čas\",IF(Výsledky_MUŽI[[#This Row],[ĽP]]=\"D\",\"Diskv.\",IF(Výsledky_MUŽI[[#This Row],[PP]]=\"D\",\"Diskv.\",IF(Výsledky_MUŽI[[#This Row],[ĽP]]=\"n\",\"Neúčasť\",IF(Výsledky_MUŽI[[#This Row],[PP]]=\"n\",\"Neúčasť\",MAX(SUBSTITUTE(Výsledky_MUŽI[[#This Row],[ĽP]],\",\",\".\"),SUBSTITUTE(Výsledky_MUŽI[[#This Row],[PP]],\",\",\".\")))))))","v":"čas"}]
[{"$f":"IF(Výsledky_MUŽI[[#This Row],[Výs. čas]]=\"čas\",\"---\",IF(Výsledky_MUŽI[[#This Row],[Výs. čas]]=99.99,\"---\",IF(Výsledky_MUŽI[[#This Row],[Výs. čas]]=\"Diskv.\",\"---\",IF(Výsledky_MUŽI[[#This Row],[Výs. čas]]=\"Neúčasť\",\"---\",_xlfn.RANK.EQ(Výsledky_MUŽI[[#This Row],[Výs. čas]],Výsledky_MUŽI[Výs. čas],1)))))","v":"---"},"Visolaje B","PU","N","N",{"$f":"IF(AND(ISBLANK(Výsledky_MUŽI[[#This Row],[PP]])),\"čas\",IF(Výsledky_MUŽI[[#This Row],[ĽP]]=\"D\",\"Diskv.\",IF(Výsledky_MUŽI[[#This Row],[PP]]=\"D\",\"Diskv.\",IF(Výsledky_MUŽI[[#This Row],[ĽP]]=\"n\",\"Neúčasť\",IF(Výsledky_MUŽI[[#This Row],[PP]]=\"n\",\"Neúčasť\",MAX(SUBSTITUTE(Výsledky_MUŽI[[#This Row],[ĽP]],\",\",\".\"),SUBSTITUTE(Výsledky_MUŽI[[#This Row],[PP]],\",\",\".\")))))))","v":"Neúčasť"}]
[null,null,null,null,null,null,"Prestupov:",{"$f":"COUNTIF(Výsledky_MUŽI[Prestup],\"X\")","v":2}]

{"sheet":"Výsledky ŽENY","index":2,"n_rows":25,"n_cols":13,"rows_kept":25,"cut":false,"hidden":false,"merged":[[0,0,0,7],[0,12,1,12],[1,0,1,7],[23,12,24,12]]}
[{"$f":"'Vstupné údaje'!$B$4","v":"54. ročník O pohár starosty města Brumov-Bylnice"},null,null,null,null,null,null,null,null,null,null,null,"Návod na plnohodnotnú prácu s výsledkami"]
[{"$f":"CONCATENATE(\"Výsledky \",'Vstupné údaje'!$B$7,\". kola SMHL \",TEXT('Vstupné údaje'!$B$5,\"yyyy\"),\" v kategórii ŽENY, ktoré sa konalo \",TEXT('Vstupné údaje'!$B$5,\"dd.mm.yyyy\"),\" o \",TEXT('Vstupné údaje'!$B$6,\"hh:mm\"))","v":"Výsledky 5. kola SMHL 2022 v kategórii ŽENY, ktoré sa konalo 03.07.2022 o 12:00"}]
[]
["Por.","Družstvo","Okres","ĽP","PP","Výs. čas","Body","Prestup",null,null,null,null,"Pri zadávaní výsledkov sa vypĺňajú nasledujúce stĺpce (zvyšné sa vypočítajú automaticky):"]
[{"$f":"IF(Výsledky_ŽENY[[#This Row],[Výs. čas]]=\"čas\",\"---\",IF(Výsledky_ŽENY[[#This Row],[Výs. čas]]=99.99,\"---\",IF(Výsledky_ŽENY[[#This Row],[Výs. čas]]=\"Diskv.\",\"---\",IF(Výsledky_ŽENY[[#This Row],[Výs. čas]]=\"Neúčasť\",\"---\",_xlfn.RANK.EQ(Výsledky_ŽENY[[#This Row],[Výs. čas]],Výsledky_ŽENY[Výs. čas],1)))))","v":1},"Bojkovice","UH",17.04,16.309999999999999,{"$f":"IF(AND(ISBLANK(Výsledky_ŽENY[[#This Row],[PP]])),\"čas\",IF(Výsledky_ŽENY[[#This Row],[ĽP]]=\"D\",\"Diskv.\",IF(Výsledky_ŽENY[[#This Row],[PP]]=\"D\",\"Diskv.\",IF(Výsledky_ŽENY[[#This Row],[ĽP]]=\"n\",\"Neúčasť\",IF(Výsledky_ŽENY[[#This Row],[PP]]=\"n\",\"Neúčasť\",MAX(SUBSTITUTE(Výsledky_ŽENY[[#This Row],[ĽP]],\",\",\".\"),SUBSTITUTE(Výsledky_ŽENY[[#This Row],[PP]],\",\",\".\")))))))","v":17.04},null,null,null,null,null,null,"--- družstvo"]
[{"$f":"IF(Výsledky_ŽENY[[#This Row],[Výs. čas]]=\"čas\",\"---\",IF(Výsledky_ŽENY[[#This Row],[Výs. čas]]=99.99,\"---\",IF(Výsledky_ŽENY[[#This Row],[Výs. čas]]=\"Diskv.\",\"---\",IF(Výsledky_ŽENY[[#This Row],[Výs. čas]]=\"Neúčasť\",\"---\",_xlfn.RANK.EQ(Výsledky_ŽENY[[#This Row],[Výs. čas]],Výsledky_ŽENY[Výs. čas],1)))))","v":2},"Zlatníky","BN",16.899999999999999,17.8,{"$f":"IF(AND(ISBLANK(Výsledky_ŽENY[[#This Row],[PP]])),\"čas\",IF(Výsledky_ŽENY[[#This Row],[ĽP]]=\"D\",\"Diskv.\",IF(Výsledky_ŽENY[[#This Row],[PP]]=\"D\",\"Diskv.\",IF(Výsledky_ŽENY[[#This Row],[ĽP]]=\"n\",\"Neúčasť\",IF(Výsledky_ŽENY[[#This Row],[PP]]=\"n\",\"Neúčasť\",MAX(SUBSTITUTE(Výsledky_ŽENY[[#This Row],[ĽP]],\",\",\".\"),SUBSTITUTE(Výsledky_ŽENY[[#This Row],[PP]],\",\",\".\")))))))","v":17.8},null,null,null,null,null,null,"--- okres"]
[{"$f":"IF(Výsledky_ŽENY[[#This Row],[Výs. čas]]=\"čas\",\"---\",IF(Výsledky_ŽENY[[#This Row],[Výs. čas]]=99.99,\"---\",IF(Výsledky_ŽENY[[#This Row],[Výs. čas]]=\"Diskv.\",\"---\",IF(Výsledky_ŽENY[[#This Row],[Výs. čas]]=\"Neúčasť\",\"---\",_xlfn.RANK.EQ(Výsledky_ŽENY[[#This Row],[Výs. čas]],Výsledky_ŽENY[Výs. čas],1)))))","v":3},"Dulov","IL",17.61,17.88,{"$f":"IF(AND(ISBLANK(Výsledky_ŽENY[[#This Row],[PP]])),\"čas\",IF(Výsledky_ŽENY[[#This Row],[ĽP]]=\"D\",\"Diskv.\",IF(Výsledky_ŽENY[[#This Row],[PP]]=\"D\",\"Diskv.\",IF(Výsledky_ŽENY[[#This Row],[ĽP]]=\"n\",\"Neúčasť\",IF(Výsledky_ŽENY[[#This Row],[PP]]=\"n\",\"Neúčasť\",MAX(SUBSTITUTE(Výsledky_ŽENY[[#This Row],[ĽP]],\",\",\".\"),SUBSTITUTE(Výsledky_ŽENY[[#This Row],[PP]],\",\",\".\")))))))","v":17.88},null,null,null,null,null,null,"--- ľavý prúd (ĽP)"]
[{"$f":"IF(Výsledky_ŽENY[[#This Row],[Výs. čas]]=\"čas\",\"---\",IF(Výsledky_ŽENY[[#This Row],[Výs. čas]]=99.99,\"---\",IF(Výsledky_ŽENY[[#This Row],[Výs. čas]]=\"Diskv.\",\"---\",IF(Výsledky_ŽENY[[#This Row],[Výs. čas]]=\"Neúčasť\",\"---\",_xlfn.RANK.EQ(Výsledky_ŽENY[[#This Row],[Výs. čas]],Výsledky_ŽENY[Výs. čas],1)))))","v":4},"Nedašova Lhota","ZL",18.11,17.87,{"$f":"IF(AND(ISBLANK(Výsledky_ŽENY[[#This Row],[PP]])),\"čas\",IF(Výsledky_ŽENY[[#This Row],[ĽP]]=\"D\",\"Diskv.\",IF(Výsledky_ŽENY[[#This Row],[PP]]=\"D\",\"Diskv.\",IF(Výsledky_ŽENY[[#This Row],[ĽP]]=\"n\",\"Neúčasť\",IF(Výsledky_ŽENY[[#This Row],[PP]]=\"n\",\"Neúčasť\",MAX(SUBSTITUTE(Výsledky_ŽENY[[#This Row],[ĽP]],\",\",\".\"),SUBSTITUTE(Výsledky_ŽENY[[#This Row],[PP]],\",\",\".\")))))))","v":18.11},null,null,null,null,null,null,"--- pravý prúd (PP)"]
[{"$f":"IF(Výsledky_ŽENY[[#This Row],[Výs. čas]]=\"čas\",\"---\",IF(Výsledky_ŽENY[[#This Row],[Výs. čas]]=99.99,\"---\",IF(Výsledky_ŽENY[[#This Row],[Výs. čas]]=\"Diskv.\",\"---\",IF(Výsledky_ŽENY[[#This Row],[Výs. čas]]=\"Neúčasť\",\"---\",_xlfn.RANK.EQ(Výsledky_ŽENY[[#This Row],[Výs. čas]],Výsledky_ŽENY[Výs. čas],1)))))","v":5},"Vlachovice","ZL",18.12,18.04,{"$f":"IF(AND(ISBLANK(Výsledky_ŽENY[[#This Row],[PP]])),\"čas\",IF(Výsledky_ŽENY[[#This Row],[ĽP]]=\"D\",\"Diskv.\",IF(Výsledky_ŽENY[[#This Row],[PP]]=\"D\",\"Diskv.\",IF(Výsledky_ŽENY[[#This Row],[ĽP]]=\"n\",\"Neúčasť\",IF(Výsledky_ŽENY[[#This Row],[PP]]=\"n\",\"Neúčasť\",MAX(SUBSTITUTE(Výsledky_ŽENY[[#This Row],[ĽP]],\",\",\".\"),SUBSTITUTE(Výsledky_ŽENY[[#This Row],[PP]],\",\",\".\")))))))","v":18.12},null,"X",null,null,null,null,"--- prestup"]
[{"$f":"IF(Výsledky_ŽENY[[#This Row],[Výs. čas]]=\"čas\",\"---\",IF(Výsledky_ŽENY[[#This Row],[Výs. čas]]=99.99,\"---\",IF(Výsledky_ŽENY[[#This Row],[Výs. čas]]=\"Diskv.\",\"---\",IF(Výsledky_ŽENY[[#This Row],[Výs. čas]]=\"Neúčasť\",\"---\",_xlfn.RANK.EQ(Výsledky_ŽENY[[#This Row],[Výs. čas]],Výsledky_ŽENY[Výs. čas],1)))))","v":6},"Holešov","Kroměříž",18.2,17.510000000000002,{"$f":"IF(AND(ISBLANK(Výsledky_ŽENY[[#This Row],[PP]])),\"čas\",IF(Výsledky_ŽENY[[#This Row],[ĽP]]=\"D\",\"Diskv.\",IF(Výsledky_ŽENY[[#This Row],[PP]]=\"D\",\"Diskv.\",IF(Výsledky_ŽENY[[#This Row],[ĽP]]=\"n\",\"Neúčasť\",IF(Výsledky_ŽENY[[#This Row],[PP]]=\"n\",\"Neúčasť\",MAX(SUBSTITUTE(Výsledky_ŽENY[[#This Row],[ĽP]],\",\",\".\"),SUBSTITUTE(Výsledky_ŽENY[[#This Row],[PP]],\",\",\".\")))))))","v":18.2}]
[{"$f":"IF(Výsledky_ŽENY[[#This Row],[Výs. čas]]=\"čas\",\"---\",IF(Výsledky_ŽENY[[#This Row],[Výs. čas]]=99.99,\"---\",IF(Výsledky_ŽENY[[#This Row],[Výs. čas]]=\"Diskv.\",\"---\",IF(Výsledky_ŽENY[[#This Row],[Výs. čas]]=\"Neúčasť\",\"---\",_xlfn.RANK.EQ(Výsledky_ŽENY[[#This Row],[Výs. čas]],Výsledky_ŽENY[Výs. čas],1)))))","v":7},"Tečovice","ZL",18.29,17.690000000000001,{"$f":"IF(AND(ISBLANK(Výsledky_ŽENY[[#This Row],[PP]])),\"čas\",IF(Výsledky_ŽENY[[#This Row],[ĽP]]=\"D\",\"Diskv.\",IF(Výsledky_ŽENY[[#This Row],[PP]]=\"D\",\"Diskv.\",IF(Výsledky_ŽENY[[#This Row],[ĽP]]=\"n\",\"Neúčasť\",IF(Výsledky_ŽENY[[#This Row],[PP]]=\"n\",\"Neúčasť\",MAX(SUBSTITUTE(Výsledky_ŽENY[[#This Row],[ĽP]],\",\",\".\"),SUBSTITUTE(Výsledky_ŽENY[[#This Row],[PP]],\",\",\".\")))))))","v":18.29},null,null,null,null,null,null,"Dovolený formát zadávaných údajov:"]
[{"$f":"IF(Výsledky_ŽENY[[#This Row],[Výs. čas]]=\"čas\",\"---\",IF(Výsledky_ŽENY[[#This Row],[Výs. čas]]=99.99,\"---\",IF(Výsledky_ŽENY[[#This Row],[Výs. čas]]=\"Diskv.\",\"---\",IF(Výsledky_ŽENY[[#This Row],[Výs. čas]]=\"Neúčasť\",\"---\",_xlfn.RANK.EQ(Výsledky_ŽENY[[#This Row],[Výs. čas]],Výsledky_ŽENY[Výs. čas],1)))))","v":8},"Kocurany","PD",18.489999999999998,18.53,{"$f":"IF(AND(ISBLANK(Výsledky_ŽENY[[#This Row],[PP]])),\"čas\",IF(Výsledky_ŽENY[[#This Row],[ĽP]]=\"D\",\"Diskv.\",IF(Výsledky_ŽENY[[#This Row],[PP]]=\"D\",\"Diskv.\",IF(Výsledky_ŽENY[[#This Row],[ĽP]]=\"n\",\"Neúčasť\",IF(Výsledky_ŽENY[[#This Row],[PP]]=\"n\",\"Neúčasť\",MAX(SUBSTITUTE(Výsledky_ŽENY[[#This Row],[ĽP]],\",\",\".\"),SUBSTITUTE(Výsledky_ŽENY[[#This Row],[PP]],\",\",\".\")))))))","v":18.53},null,null,null,null,null,null,"Družstvo, okres"]
[{"$f":"IF(Výsledky_ŽENY[[#This Row],[Výs. čas]]=\"čas\",\"---\",IF(Výsledky_ŽENY[[#This Row],[Výs. čas]]=99.99,\"---\",IF(Výsledky_ŽENY[[#This Row],[Výs. čas]]=\"Diskv.\",\"---\",IF(Výsledky_ŽENY[[#This Row],[Výs. čas]]=\"Neúčasť\",\"---\",_xlfn.RANK.EQ(Výsledky_ŽENY[[#This Row],[Výs. čas]],Výsledky_ŽENY[Výs. čas],1)))))","v":9},"Mostiště","PU",18.7,18.71,{"$f":"IF(AND(ISBLANK(Výsledky_ŽENY[[#This Row],[PP]])),\"čas\",IF(Výsledky_ŽENY[[#This Row],[ĽP]]=\"D\",\"Diskv.\",IF(Výsledky_ŽENY[[#This Row],[PP]]=\"D\",\"Diskv.\",IF(Výsledky_ŽENY[[#This Row],[ĽP]]=\"n\",\"Neúčasť\",IF(Výsledky_ŽENY[[#This Row],[PP]]=\"n\",\"Neúčasť\",MAX(SUBSTITUTE(Výsledky_ŽENY[[#This Row],[ĽP]],\",\",\".\"),SUBSTITUTE(Výsledky_ŽENY[[#This Row],[PP]],\",\",\".\")))))))","v":18.71},null,"X",null,null,null,null,"--- ľubovoľný text"]
[{"$f":"IF(Výsledky_ŽENY[[#This Row],[Výs. čas]]=\"čas\",\"---\",IF(Výsledky_ŽENY[[#This Row],[Výs. čas]]=99.99,\"---\",IF(Výsledky_ŽENY[[#This Row],[Výs. čas]]=\"Diskv.\",\"---\",IF(Výsledky_ŽENY[[#This Row],[Výs. čas]]=\"Neúčasť\",\"---\",_xlfn.RANK.EQ(Výsledky_ŽENY[[#This Row],[Výs. čas]],Výsledky_ŽENY[Výs. čas],1)))))","v":10},"Pohořelice","ZL",16.71,18.850000000000001,{"$f":"IF(AND(ISBLANK(Výsledky_ŽENY[[#This Row],[PP]])),\"čas\",IF(Výsledky_ŽENY[[#This Row],[ĽP]]=\"D\",\"Diskv.\",IF(Výsledky_ŽENY[[#This Row],[PP]]=\"D\",\"Diskv.\",IF(Výsledky_ŽENY[[#This Row],[ĽP]]=\"n\",\"Neúčasť\",IF(Výsledky_ŽENY[[#This Row],[PP]]=\"n\",\"Neúčasť\",MAX(SUBSTITUTE(Výsledky_ŽENY[[#This Row],[ĽP]],\",\",\".\"),SUBSTITUTE(Výsledky_ŽENY[[#This Row],[PP]],\",\",\".\")))))))","v":18.850000000000001},null,"X",null,null,null,null,"Ľavý/pravý prúd"]
[{"$f":"IF(Výsledky_ŽENY[[#This Row],[Výs. čas]]=\"čas\",\"---\",IF(Výsledky_ŽENY[[#This Row],[Výs. čas]]=99.99,\"---\",IF(Výsledky_ŽENY[[#This Row],[Výs. čas]]=\"Diskv.\",\"---\",IF(Výsledky_ŽENY[[#This Row],[Výs. čas]]=\"Neúčasť\",\"---\",_xlfn.RANK.EQ(Výsledky_ŽENY[[#This Row],[Výs. čas]],Výsledky_ŽENY[Výs. čas],1)))))","v":11},"Popov","ZL",18.91,18.84,{"$f":"IF(AND(ISBLANK(Výsledky_ŽENY[[#This Row],[PP]])),\"čas\",IF(Výsledky_ŽENY[[#This Row],[ĽP]]=\"D\",\"Diskv.\",IF(Výsledky_ŽENY[[#This Row],[PP]]=\"D\",\"Diskv.\",IF(Výsledky_ŽENY[[#This Row],[ĽP]]=\"n\",\"Neúčasť\",IF(Výsledky_ŽENY[[#This Row],[PP]]=\"n\",\"Neúčasť\",MAX(SUBSTITUTE(Výsledky_ŽENY[[#This Row],[ĽP]],\",\",\".\"),SUBSTITUTE(Výsledky_ŽENY[[#This Row],[PP]],\",\",\".\")))))))","v":18.91},null,null,null,null,null,null,"14.00 --- dokončený pokus"]
[{"$f":"IF(Výsledky_ŽENY[[#This Row],[Výs. čas]]=\"čas\",\"---\",IF(Výsledky_ŽENY[[#This Row],[Výs. čas]]=99.99,\"---\",IF(Výsledky_ŽENY[[#This Row],[Výs. čas]]=\"Diskv.\",\"---\",IF(Výsledky_ŽENY[[#This Row],[Výs. čas]]=\"Neúčasť\",\"---\",_xlfn.RANK.EQ(Výsledky_ŽENY[[#This Row],[Výs. čas]],Výsledky_ŽENY[Výs. čas],1)))))","v":12},"Valašské Příkazy","VS",18.87,19.73,{"$f":"IF(AND(ISBLANK(Výsledky_ŽENY[[#This Row],[PP]])),\"čas\",IF(Výsledky_ŽENY[[#This Row],[ĽP]]=\"D\",\"Diskv.\",IF(Výsledky_ŽENY[[#This Row],[PP]]=\"D\",\"Diskv.\",IF(Výsledky_ŽENY[[#This Row],[ĽP]]=\"n\",\"Neúčasť\",IF(Výsledky_ŽENY[[#This Row],[PP]]=\"n\",\"Neúčasť\",MAX(SUBSTITUTE(Výsledky_ŽENY[[#This Row],[ĽP]],\",\",\".\"),SUBSTITUTE(Výsledky_ŽENY[[#This Row],[PP]],\",\",\".\")))))))","v":19.73},null,null,null,null,null,null,"14.00 --- dokončený pokus"]
[{"$f":"IF(Výsledky_ŽENY[[#This Row],[Výs. čas]]=\"čas\",\"---\",IF(Výsledky_ŽENY[[#This Row],[Výs. čas]]=99.99,\"---\",IF(Výsledky_ŽENY[[#This Row],[Výs. čas]]=\"Diskv.\",\"---\",IF(Výsledky_ŽENY[[#This Row],[Výs. čas]]=\"Neúčasť\",\"---\",_xlfn.RANK.EQ(Výsledky_ŽENY[[#This Row],[Výs. čas]],Výsledky_ŽENY[Výs. čas],1)))))","v":13},"Nosice - žabky B","PU",19.04,22.19,{"$f":"IF(AND(ISBLANK(Výsledky_ŽENY[[#This Row],[PP]])),\"čas\",IF(Výsledky_ŽENY[[#This Row],[ĽP]]=\"D\",\"Diskv.\",IF(Výsledky_ŽENY[[#This Row],[PP]]=\"D\",\"Diskv.\",IF(Výsledky_ŽENY[[#This Row],[ĽP]]=\"n\",\"Neúčasť\",IF(Výsledky_ŽENY[[#This Row],[PP]]=\"n\",\"Neúčasť\",MAX(SUBSTITUTE(Výsledky_ŽENY[[#This Row],[ĽP]],\",\",\".\"),SUBSTITUTE(Výsledky_ŽENY[[#This Row],[PP]],\",\",\".\")))))))","v":22.19}]
[{"$f":"IF(Výsledky_ŽENY[[#This Row],[Výs. čas]]=\"čas\",\"---\",IF(Výsledky_ŽENY[[#This Row],[Výs. čas]]=99.99,\"---\",IF(Výsledky_ŽENY[[#This Row],[Výs. čas]]=\"Diskv.\",\"---\",IF(Výsledky_ŽENY[[#This Row],[Výs. čas]]=\"Neúčasť\",\"---\",_xlfn.RANK.EQ(Výsledky_ŽENY[[#This Row],[Výs. čas]],Výsledky_ŽENY[Výs. čas],1)))))","v":14},"Bylnice","ZL",24.31,25.14,{"$f":"IF(AND(ISBLANK(Výsledky_ŽENY[[#This Row],[PP]])),\"čas\",IF(Výsledky_ŽENY[[#This Row],[ĽP]]=\"D\",\"Diskv.\",IF(Výsledky_ŽENY[[#This Row],[PP]]=\"D\",\"Diskv.\",IF(Výsledky_ŽENY[[#This Row],[ĽP]]=\"n\",\"Neúčasť\",IF(Výsledky_ŽENY[[#This Row],[PP]]=\"n\",\"Neúčasť\",MAX(SUBSTITUTE(Výsledky_ŽENY[[#This Row],[ĽP]],\",\",\".\"),SUBSTITUTE(Výsledky_ŽENY[[#This Row],[PP]],\",\",\".\")))))))","v":25.14},null,"X"]
[{"$f":"IF(Výsledky_ŽENY[[#This Row],[Výs. čas]]=\"čas\",\"---\",IF(Výsledky_ŽENY[[#This Row],[Výs. čas]]=99.99,\"---\",IF(Výsledky_ŽENY[[#This Row],[Výs. čas]]=\"Diskv.\",\"---\",IF(Výsledky_ŽENY[[#This Row],[Výs. čas]]=\"Neúčasť\",\"---\",_xlfn.RANK.EQ(Výsledky_ŽENY[[#This Row],[Výs. čas]],Výsledky_ŽENY[Výs. čas],1)))))","v":"---"},null,null,null,null,{"$f":"IF(AND(ISBLANK(Výsledky_ŽENY[[#This Row],[PP]])),\"čas\",IF(Výsledky_ŽENY[[#This Row],[ĽP]]=\"D\",\"Diskv.\",IF(Výsledky_ŽENY[[#This Row],[PP]]=\"D\",\"Diskv.\",IF(Výsledky_ŽENY[[#This Row],[ĽP]]=\"n\",\"Neúčasť\",IF(Výsledky_ŽENY[[#This Row],[PP]]=\"n\",\"Neúčasť\",MAX(SUBSTITUTE(Výsledky_ŽENY[[#This Row],[ĽP]],\",\",\".\"),SUBSTITUTE(Výsledky_ŽENY[[#This Row],[PP]],\",\",\".\")))))))","v":"čas"},null,null,null,null,null,null,"D        --- diskvalifikácia družstva"]
[{"$f":"IF(Výsledky_ŽENY[[#This Row],[Výs. čas]]=\"čas\",\"---\",IF(Výsledky_ŽENY[[#This Row],[Výs. čas]]=99.99,\"---\",IF(Výsledky_ŽENY[[#This Row],[Výs. čas]]=\"Diskv.\",\"---\",IF(Výsledky_ŽENY[[#This Row],[Výs. čas]]=\"Neúčasť\",\"---\",_xlfn.RANK.EQ(Výsledky_ŽENY[[#This Row],[Výs. čas]],Výsledky_ŽENY[Výs. čas],1)))))","v":"---"},null,null,null,null,{"$f":"IF(AND(ISBLANK(Výsledky_ŽENY[[#This Row],[PP]])),\"čas\",IF(Výsledky_ŽENY[[#This Row],[ĽP]]=\"D\",\"Diskv.\",IF(Výsledky_ŽENY[[#This Row],[PP]]=\"D\",\"Diskv.\",IF(Výsledky_ŽENY[[#This Row],[ĽP]]=\"n\",\"Neúčasť\",IF(Výsledky_ŽENY[[#This Row],[PP]]=\"n\",\"Neúčasť\",MAX(SUBSTITUTE(Výsledky_ŽENY[[#This Row],[ĽP]],\",\",\".\"),SUBSTITUTE(Výsledky_ŽENY[[#This Row],[PP]],\",\",\".\")))))))","v":"čas"},null,null,null,null,null,null,"N        --- neúčasť družstva"]
[{"$f":"IF(Výsledky_ŽENY[[#This Row],[Výs. čas]]=\"čas\",\"---\",IF(Výsledky_ŽENY[[#This Row],[Výs. čas]]=99.99,\"---\",IF(Výsledky_ŽENY[[#This Row],[Výs. čas]]=\"Diskv.\",\"---\",IF(Výsledky_ŽENY[[#This Row],[Výs. čas]]=\"Neúčasť\",\"---\",_xlfn.RANK.EQ(Výsledky_ŽENY[[#This Row],[Výs. čas]],Výsledky_ŽENY[Výs. čas],1)))))","v":"---"},null,null,null,null,{"$f":"IF(AND(ISBLANK(Výsledky_ŽENY[[#This Row],[PP]])),\"čas\",IF(Výsledky_ŽENY[[#This Row],[ĽP]]=\"D\",\"Diskv.\",IF(Výsledky_ŽENY[[#This Row],[PP]]=\"D\",\"Diskv.\",IF(Výsledky_ŽENY[[#This Row],[ĽP]]=\"n\",\"Neúčasť\",IF(Výsledky_ŽENY[[#This Row],[PP]]=\"n\",\"Neúčasť\",MAX(SUBSTITUTE(Výsledky_ŽENY[[#This Row],[ĽP]],\",\",\".\"),SUBSTITUTE(Výsledky_ŽENY[[#This Row],[PP]],\",\",\".\")))))))","v":"čas"},null,null,null,null,null,null,"Prestup"]
[{"$f":"IF(Výsledky_ŽENY[[#This Row],[Výs. čas]]=\"čas\",\"---\",IF(Výsledky_ŽENY[[#This Row],[Výs. čas]]=99.99,\"---\",IF(Výsledky_ŽENY[[#This Row],[Výs. čas]]=\"Diskv.\",\"---\",IF(Výsledky_ŽENY[[#This Row],[Výs. čas]]=\"Neúčasť\",\"---\",_xlfn.RANK.EQ(Výsledky_ŽENY[[#This Row],[Výs. čas]],Výsledky_ŽENY[Výs. čas],1)))))","v":"---"},null,null,null,null,{"$f":"IF(AND(ISBLANK(Výsledky_ŽENY[[#This Row],[PP]])),\"čas\",IF(Výsledky_ŽENY[[#This Row],[ĽP]]=\"D\",\"Diskv.\",IF(Výsledky_ŽENY[[#This Row],[PP]]=\"D\",\"Diskv.\",IF(Výsledky_ŽENY[[#This Row],[ĽP]]=\"n\",\"Neúčasť\",IF(Výsledky_ŽENY[[#This Row],[PP]]=\"n\",\"Neúčasť\",MAX(SUBSTITUTE(Výsledky_ŽENY[[#This Row],[ĽP]],\",\",\".\"),SUBSTITUTE(Výsledky_ŽENY[[#This Row],[PP]],\",\",\".\")))))))","v":"čas"},null,null,null,null,null,null,"X        --- ak malo družstvo prestup"]
[{"$f":"IF(Výsledky_ŽENY[[#This Row],[Výs. čas]]=\"čas\",\"---\",IF(Výsledky_ŽENY[[#This Row],[Výs. čas]]=99.99,\"---\",IF(Výsledky_ŽENY[[#This Row],[Výs. čas]]=\"Diskv.\",\"---\",IF(Výsledky_ŽENY[[#This Row],[Výs. čas]]=\"Neúčasť\",\"---\",_xlfn.RANK.EQ(Výsledky_ŽENY[[#This Row],[Výs. čas]],Výsledky_ŽENY[Výs. čas],1)))))","v":"---"},"Ihriště","PU",null,null,{"$f":"IF(AND(ISBLANK(Výsledky_ŽENY[[#This Row],[PP]])),\"čas\",IF(Výsledky_ŽENY[[#This Row],[ĽP]]=\"D\",\"Diskv.\",IF(Výsledky_ŽENY[[#This Row],[PP]]=\"D\",\"Diskv.\",IF(Výsledky_ŽENY[[#This Row],[ĽP]]=\"n\",\"Neúčasť\",IF(Výsledky_ŽENY[[#This Row],[PP]]=\"n\",\"Neúčasť\",MAX(SUBSTITUTE(Výsledky_ŽENY[[#This Row],[ĽP]],\",\",\".\"),SUBSTITUTE(Výsledky_ŽENY[[#This Row],[PP]],\",\",\".\")))))))","v":"čas"}]
[{"$f":"IF(Výsledky_ŽENY[[#This Row],[Výs. čas]]=\"čas\",\"---\",IF(Výsledky_ŽENY[[#This Row],[Výs. čas]]=99.99,\"---\",IF(Výsledky_ŽENY[[#This Row],[Výs. čas]]=\"Diskv.\",\"---\",IF(Výsledky_ŽENY[[#This Row],[Výs. čas]]=\"Neúčasť\",\"---\",_xlfn.RANK.EQ(Výsledky_ŽENY[[#This Row],[Výs. čas]],Výsledky_ŽENY[Výs. čas],1)))))","v":"---"},"Bratřejov","ZL","N","N",{"$f":"IF(AND(ISBLANK(Výsledky_ŽENY[[#This Row],[PP]])),\"čas\",IF(Výsledky_ŽENY[[#This Row],[ĽP]]=\"D\",\"Diskv.\",IF(Výsledky_ŽENY[[#This Row],[PP]]=\"D\",\"Diskv.\",IF(Výsledky_ŽENY[[#This Row],[ĽP]]=\"n\",\"Neúčasť\",IF(Výsledky_ŽENY[[#This Row],[PP]]=\"n\",\"Neúčasť\",MAX(SUBSTITUTE(Výsledky_ŽENY[[#This Row],[ĽP]],\",\",\".\"),SUBSTITUTE(Výsledky_ŽENY[[#This Row],[PP]],\",\",\".\")))))))","v":"Neúčasť"},null,null,null,null,null,null,"TIP: Ak potrebujete do tabuľky pridať nový riadok, presuňte sa do stĺpca \"H\" posledného riadku a stačte klávesu TAB."]
[{"$f":"IF(Výsledky_ŽENY[[#This Row],[Výs. čas]]=\"čas\",\"---\",IF(Výsledky_ŽENY[[#This Row],[Výs. čas]]=99.99,\"---\",IF(Výsledky_ŽENY[[#This Row],[Výs. čas]]=\"Diskv.\",\"---\",IF(Výsledky_ŽENY[[#This Row],[Výs. čas]]=\"Neúčasť\",\"---\",_xlfn.RANK.EQ(Výsledky_ŽENY[[#This Row],[Výs. čas]],Výsledky_ŽENY[Výs. čas],1)))))","v":{"$error":"#VALUE!"}},null,null,null,null,{"$f":"IF(AND(ISBLANK(Výsledky_ŽENY[[#This Row],[PP]])),\"čas\",IF(Výsledky_ŽENY[[#This Row],[ĽP]]=\"D\",\"Diskv.\",IF(Výsledky_ŽENY[[#This Row],[PP]]=\"D\",\"Diskv.\",IF(Výsledky_ŽENY[[#This Row],[ĽP]]=\"n\",\"Neúčasť\",IF(Výsledky_ŽENY[[#This Row],[PP]]=\"n\",\"Neúčasť\",MAX(SUBSTITUTE(Výsledky_ŽENY[[#This Row],[ĽP]],\",\",\".\"),SUBSTITUTE(Výsledky_ŽENY[[#This Row],[PP]],\",\",\".\")))))))","v":{"$error":"#VALUE!"}},{"$f":"IF(Výsledky_ŽENY[[#This Row],[Por.]]=1,10,IF(Výsledky_ŽENY[[#This Row],[Por.]]=2,8,IF(Výsledky_ŽENY[[#This Row],[Por.]]=3,6,IF(Výsledky_ŽENY[[#This Row],[Por.]]=4,4,IF(Výsledky_ŽENY[[#This Row],[Por.]]=5,2,IF(Výsledky_ŽENY[[#This Row],[Výs. čas]]=99.99,1,IF(Výsledky_ŽENY[[#This Row],[Výs. čas]]=\"Diskv.\",1,IF(Výsledky_ŽENY[[#This Row],[Výs. čas]]=\"Neúčasť\",0,2))))))))","v":{"$error":"#VALUE!"}}]

{"sheet":"Výsledky MUŽI nad 35 rokov","index":3,"n_rows":22,"n_cols":13,"rows_kept":22,"cut":false,"hidden":false,"merged":[[0,0,0,7],[0,12,1,12],[1,0,1,7],[21,12,22,12]]}
[{"$f":"'Vstupné údaje'!$B$4","v":"54. ročník O pohár starosty města Brumov-Bylnice"},null,null,null,null,null,null,null,null,null,null,null,"Návod na plnohodnotnú prácu s výsledkami"]
[{"$f":"CONCATENATE(\"Výsledky \",'Vstupné údaje'!$B$7,\". kola SMHL \",TEXT('Vstupné údaje'!$B$5,\"yyyy\"),\" v kategórii MUŽI nad 35 rokov, ktoré sa konalo \",TEXT('Vstupné údaje'!$B$5,\"dd.mm.yyyy\"),\" o \",TEXT('Vstupné údaje'!$B$6,\"hh:mm\"))","v":"Výsledky 5. kola SMHL 2022 v kategórii MUŽI nad 35 rokov, ktoré sa konalo 03.07.2022 o 12:00"}]
[]
["Por.","Družstvo","Okres","ĽP","PP","Výs. čas","Body","Prestup",null,null,null,null,"Pri zadávaní výsledkov sa vypĺňajú nasledujúce stĺpce (zvyšné sa vypočítajú automaticky):"]
[{"$f":"IF(Výsledky_ŽENY9[[#This Row],[Výs. čas]]=\"čas\",\"---\",IF(Výsledky_ŽENY9[[#This Row],[Výs. čas]]=99.99,\"---\",IF(Výsledky_ŽENY9[[#This Row],[Výs. čas]]=\"Diskv.\",\"---\",IF(Výsledky_ŽENY9[[#This Row],[Výs. čas]]=\"Neúčasť\",\"---\",_xlfn.RANK.EQ(Výsledky_ŽENY9[[#This Row],[Výs. čas]],Výsledky_ŽENY9[Výs. čas],1)))))","v":1},"Lednické Rovne","PU",14.93,14.95,{"$f":"IF(AND(ISBLANK(Výsledky_ŽENY9[[#This Row],[PP]])),\"čas\",IF(Výsledky_ŽENY9[[#This Row],[ĽP]]=\"D\",\"Diskv.\",IF(Výsledky_ŽENY9[[#This Row],[PP]]=\"D\",\"Diskv.\",IF(Výsledky_ŽENY9[[#This Row],[ĽP]]=\"n\",\"Neúčasť\",IF(Výsledky_ŽENY9[[#This Row],[PP]]=\"n\",\"Neúčasť\",MAX(SUBSTITUTE(Výsledky_ŽENY9[[#This Row],[ĽP]],\",\",\".\"),SUBSTITUTE(Výsledky_ŽENY9[[#This Row],[PP]],\",\",\".\")))))))","v":14.95},{"$f":"IF(Výsledky_ŽENY9[[#This Row],[Por.]]=1,10,IF(Výsledky_ŽENY9[[#This Row],[Por.]]=2,8,IF(Výsledky_ŽENY9[[#This Row],[Por.]]=3,6,IF(Výsledky_ŽENY9[[#This Row],[Por.]]=4,4,IF(Výsledky_ŽENY9[[#This Row],[Por.]]=5,2,IF(Výsledky_ŽENY9[[#This Row],[Výs. čas]]=99.99,1,IF(Výsledky_ŽENY9[[#This Row],[Výs. čas]]=\"Diskv.\",1,IF(Výsledky_ŽENY9[[#This Row],[Výs. čas]]=\"Neúčasť\",0,2))))))))","v":10},"x",null,null,null,null,"--- družstvo"]
[{"$f":"IF(Výsledky_ŽENY9[[#This Row],[Výs. čas]]=\"čas\",\"---\",IF(Výsledky_ŽENY9[[#This Row],[Výs. čas]]=99.99,\"---\",IF(Výsledky_ŽENY9[[#This Row],[Výs. čas]]=\"Diskv.\",\"---\",IF(Výsledky_ŽENY9[[#This Row],[Výs. čas]]=\"Neúčasť\",\"---\",_xlfn.RANK.EQ(Výsledky_ŽENY9[[#This Row],[Výs. čas]],Výsledky_ŽENY9[Výs. čas],1)))))","v":2},"Ihriště","PU",14.87,15.47,{"$f":"IF(AND(ISBLANK(Výsledky_ŽENY9[[#This Row],[PP]])),\"čas\",IF(Výsledky_ŽENY9[[#This Row],[ĽP]]=\"D\",\"Diskv.\",IF(Výsledky_ŽENY9[[#This Row],[PP]]=\"D\",\"Diskv.\",IF(Výsledky_ŽENY9[[#This Row],[ĽP]]=\"n\",\"Neúčasť\",IF(Výsledky_ŽENY9[[#This Row],[PP]]=\"n\",\"Neúčasť\",MAX(SUBSTITUTE(Výsledky_ŽENY9[[#This Row],[ĽP]],\",\",\".\"),SUBSTITUTE(Výsledky_ŽENY9[[#This Row],[PP]],\",\",\".\")))))))","v":15.47},{"$f":"IF(Výsledky_ŽENY9[[#This Row],[Por.]]=1,10,IF(Výsledky_ŽENY9[[#This Row],[Por.]]=2,8,IF(Výsledky_ŽENY9[[#This Row],[Por.]]=3,6,IF(Výsledky_ŽENY9[[#This Row],[Por.]]=4,4,IF(Výsledky_ŽENY9[[#This Row],[Por.]]=5,2,IF(Výsledky_ŽENY9[[#This Row],[Výs. čas]]=99.99,1,IF(Výsledky_ŽENY9[[#This Row],[Výs. čas]]=\"Diskv.\",1,IF(Výsledky_ŽENY9[[#This Row],[Výs. čas]]=\"Neúčasť\",0,2))))))))","v":8},null,null,null,null,null,"--- okres"]
[{"$f":"IF(Výsledky_ŽENY9[[#This Row],[Výs. čas]]=\"čas\",\"---\",IF(Výsledky_ŽENY9[[#This Row],[Výs. čas]]=99.99,\"---\",IF(Výsledky_ŽENY9[[#This Row],[Výs. čas]]=\"Diskv.\",\"---\",IF(Výsledky_ŽENY9[[#This Row],[Výs. čas]]=\"Neúčasť\",\"---\",_xlfn.RANK.EQ(Výsledky_ŽENY9[[#This Row],[Výs. čas]],Výsledky_ŽENY9[Výs. čas],1)))))","v":3},"Lehota pod Vtáčnikom","PD",17.010000000000002,16.440000000000001,{"$f":"IF(AND(ISBLANK(Výsledky_ŽENY9[[#This Row],[PP]])),\"čas\",IF(Výsledky_ŽENY9[[#This Row],[ĽP]]=\"D\",\"Diskv.\",IF(Výsledky_ŽENY9[[#This Row],[PP]]=\"D\",\"Diskv.\",IF(Výsledky_ŽENY9[[#This Row],[ĽP]]=\"n\",\"Neúčasť\",IF(Výsledky_ŽENY9[[#This Row],[PP]]=\"n\",\"Neúčasť\",MAX(SUBSTITUTE(Výsledky_ŽENY9[[#This Row],[ĽP]],\",\",\".\"),SUBSTITUTE(Výsledky_ŽENY9[[#This Row],[PP]],\",\",\".\")))))))","v":17.010000000000002},{"$f":"IF(Výsledky_ŽENY9[[#This Row],[Por.]]=1,10,IF(Výsledky_ŽENY9[[#This Row],[Por.]]=2,8,IF(Výsledky_ŽENY9[[#This Row],[Por.]]=3,6,IF(Výsledky_ŽENY9[[#This Row],[Por.]]=4,4,IF(Výsledky_ŽENY9[[#This Row],[Por.]]=5,2,IF(Výsledky_ŽENY9[[#This Row],[Výs. čas]]=99.99,1,IF(Výsledky_ŽENY9[[#This Row],[Výs. čas]]=\"Diskv.\",1,IF(Výsledky_ŽENY9[[#This Row],[Výs. čas]]=\"Neúčasť\",0,2))))))))","v":6},null,null,null,null,null,"--- ľavý prúd (ĽP)"]
[{"$f":"IF(Výsledky_ŽENY9[[#This Row],[Výs. čas]]=\"čas\",\"---\",IF(Výsledky_ŽENY9[[#This Row],[Výs. čas]]=99.99,\"---\",IF(Výsledky_ŽENY9[[#This Row],[Výs. čas]]=\"Diskv.\",\"---\",IF(Výsledky_ŽENY9[[#This Row],[Výs. čas]]=\"Neúčasť\",\"---\",_xlfn.RANK.EQ(Výsledky_ŽENY9[[#This Row],[Výs. čas]],Výsledky_ŽENY9[Výs. čas],1)))))","v":"---"},null,null,null,null,{"$f":"IF(AND(ISBLANK(Výsledky_ŽENY9[[#This Row],[PP]])),\"čas\",IF(Výsledky_ŽENY9[[#This Row],[ĽP]]=\"D\",\"Diskv.\",IF(Výsledky_ŽENY9[[#This Row],[PP]]=\"D\",\"Diskv.\",IF(Výsledky_ŽENY9[[#This Row],[ĽP]]=\"n\",\"Neúčasť\",IF(Výsledky_ŽENY9[[#This Row],[PP]]=\"n\",\"Neúčasť\",MAX(SUBSTITUTE(Výsledky_ŽENY9[[#This Row],[ĽP]],\",\",\".\"),SUBSTITUTE(Výsledky_ŽENY9[[#This Row],[PP]],\",\",\".\")))))))","v":"čas"},{"$f":"IF(Výsledky_ŽENY9[[#This Row],[Por.]]=1,10,IF(Výsledky_ŽENY9[[#This Row],[Por.]]=2,8,IF(Výsledky_ŽENY9[[#This Row],[Por.]]=3,6,IF(Výsledky_ŽENY9[[#This Row],[Por.]]=4,4,IF(Výsledky_ŽENY9[[#This Row],[Por.]]=5,2,IF(Výsledky_ŽENY9[[#This Row],[Výs. čas]]=99.99,1,IF(Výsledky_ŽENY9[[#This Row],[Výs. čas]]=\"Diskv.\",1,IF(Výsledky_ŽENY9[[#This Row],[Výs. čas]]=\"Neúčasť\",0,2))))))))","v":2},null,null,null,null,null,"--- pravý prúd (PP)"]
[{"$f":"IF(Výsledky_ŽENY9[[#This Row],[Výs. čas]]=\"čas\",\"---\",IF(Výsledky_ŽENY9[[#This Row],[Výs. čas]]=99.99,\"---\",IF(Výsledky_ŽENY9[[#This Row],[Výs. čas]]=\"Diskv.\",\"---\",IF(Výsledky_ŽENY9[[#This Row],[Výs. čas]]=\"Neúčasť\",\"---\",_xlfn.RANK.EQ(Výsledky_ŽENY9[[#This Row],[Výs. čas]],Výsledky_ŽENY9[Výs. čas],1)))))","v":"---"},null,null,null,null,{"$f":"IF(AND(ISBLANK(Výsledky_ŽENY9[[#This Row],[PP]])),\"čas\",IF(Výsledky_ŽENY9[[#This Row],[ĽP]]=\"D\",\"Diskv.\",IF(Výsledky_ŽENY9[[#This Row],[PP]]=\"D\",\"Diskv.\",IF(Výsledky_ŽENY9[[#This Row],[ĽP]]=\"n\",\"Neúčasť\",IF(Výsledky_ŽENY9[[#This Row],[PP]]=\"n\",\"Neúčasť\",MAX(SUBSTITUTE(Výsledky_ŽENY9[[#This Row],[ĽP]],\",\",\".\"),SUBSTITUTE(Výsledky_ŽENY9[[#This Row],[PP]],\",\",\".\")))))))","v":"čas"},{"$f":"IF(Výsledky_ŽENY9[[#This Row],[Por.]]=1,10,IF(Výsledky_ŽENY9[[#This Row],[Por.]]=2,8,IF(Výsledky_ŽENY9[[#This Row],[Por.]]=3,6,IF(Výsledky_ŽENY9[[#This Row],[Por.]]=4,4,IF(Výsledky_ŽENY9[[#This Row],[Por.]]=5,2,IF(Výsledky_ŽENY9[[#This Row],[Výs. čas]]=99.99,1,IF(Výsledky_ŽENY9[[#This Row],[Výs. čas]]=\"Diskv.\",1,IF(Výsledky_ŽENY9[[#This Row],[Výs. čas]]=\"Neúčasť\",0,2))))))))","v":2},null,null,null,null,null,"--- prestup"]
[null,null,null,null,null,null,"Prestupov:",{"$f":"COUNTIF(Výsledky_ŽENY9[Prestup],\"X\")","v":1}]
[null,null,null,null,null,null,null,null,null,null,null,null,"Dovolený formát zadávaných údajov:"]
[null,null,null,null,null,null,null,null,null,null,null,null,"Družstvo, okres"]
[null,null,null,null,null,null,null,null,null,null,null,null,"--- ľubovoľný text"]
[null,null,null,null,null,null,null,null,null,null,null,null,"Ľavý/pravý prúd"]
[null,null,null,null,null,null,null,null,null,null,null,null,"14.00 --- dokončený pokus"]
[null,null,null,null,null,null,null,null,null,null,null,null,"99.99 --- nedokončený pokus"]
[null,null,null,null,null,null,null,null,null,null,null,null,"D        --- diskvalifikácia družstva"]
[null,null,null,null,null,null,null,null,null,null,null,null,"N        --- neúčasť družstva"]
[null,null,null,null,null,null,null,null,null,null,null,null,"Prestup"]
[null,null,null,null,null,null,null,null,null,null,null,null,"X        --- ak malo družstvo prestup"]
[]
[null,null,null,null,null,null,null,null,null,null,null,null,"TIP: Ak potrebujete do tabuľky pridať nový riadok, presuňte sa do stĺpca \"H\" posledného riadku a stačte klávesu TAB."]